Cogmind - Beta 13 @@@ ROGUE MODE // 2024.04.17 @ 12:04:53 Player: Nebula avali Result: Destroyed by G-34 Mercenary with Small Laser Performance ------------- Evolutions (1) 500 Regions Visited (2) 400 Robots Destroyed (12) 60 Value Destroyed (263) 263 Prototype IDs (1) 20 Alien Tech Used (0) 0 Bonus (200) 200 TOTAL SCORE: 1443 Bonus ------- Pacifist 200 Cogmind --------- Core Integrity 0/400 Matter 163/300 Energy 100/100 System Corruption 1% Temperature Cool (6) Movement Core (150) Ox2 Location -9/Materials Parts ------- > --- POWER (1) -------- (None) > --- PROPULSION (2) --- (None) > --- UTILITY (4) ------ Small Storage Unit > --- WEAPON (2) ------- Maul > --- INVENTORY (8) ---- Ion Engine Ion Engine Maul Peak State ------------ > --- POWER ------------ Heavy Ion Engine > --- PROPULSION ------- Aluminum Leg Aluminum Leg > --- UTILITY ---------- Small Storage Unit > --- WEAPON ----------- Rocket Launcher Maul > --- INVENTORY -------- Ion Engine Ion Engine Compact Wheel Compact Wheel Rocket Launcher Maul [Rating: 10] Favorites ----------- Power Ion Engine Engine Ion Engine Propulsion Aluminum Leg Leg Aluminum Leg Wheel Compact Wheel Utility Small Storage Unit Storage Small Storage Unit Weapon Maul Energy Gun EM Pulse Gun Ballistic Gun Assault Rifle Launcher Rocket Launcher Impact Weapon Maul Build | -11 -10 -9 ------- Run | Yrd Mat Mat Slots Evolved 2 | . . 2 Power . | . . . Propulsion . | . . . Utility 2 | . . 2 Weapon . | . . . Parts Attached 6 | . 1 5 Power 1 | . . 1 Engine 1 | . . 1 Core . | . . . Reactor . | . . . Propulsion 2 | . . 2 Treads . | . . . Leg . | . . . Wheel 2 | . . 2 Hover . | . . . Flight . | . . . Utility . | . . . Device . | . . . Storage . | . . . Processor . | . . . Hackware . | . . . Protection . | . . . Artifact . | . . . Weapon 3 | . 1 2 Energy Gun . | . . . Energy Cannon . | . . . Ballistic Gun . | . . . Ballistic Cannon . | . . . Launcher 2 | . . 2 Special Weapon . | . . . Impact Weapon 1 | . 1 . Slashing Weapon . | . . . Piercing Weapon . | . . . Special Melee Weapon . | . . . Unidentified Prototypes 1 | . . 1 Parts Lost 6 | . . 6 Power 1 | . . 1 Propulsion 4 | . . 4 Utility . | . . . Weapon 1 | . . 1 Highest Loss Streak 6 | . . 6 To Critical Strikes . | . . . Average Slot Usage (%) 60 | . 76 52 Engine 11 | . 14 9 Leg 20 | . 28 16 Wheel 1 | . . 2 Storage 12 | . 14 11 Energy Gun 1 | . 5 . Ballistic Gun 1 | . 5 . Launcher 1 | . . 2 Impact Weapon 10 | . 8 11 Naked Turns . | . . . Heaviest Build 20 | 14 14 20 Greatest Support 32 | 20 20 32 Greatest Overweight (x) 2 | . . 2 Average Overweight (x) . | . . . Largest Inventory Capacity 8 | . 8 8 Average Capacity 8 | . 8 8 Most Carried 8 | . 8 6 Average Carried 5 | . 5 5 Final Capacity 8 | 8 8 8 Final Carried 6 | 6 6 3 Class Distribution -------------------- 100% | Mutant Dominant Class ---------------- Mutant | -10/Materials Mutant | -9/Materials Resources | -11 -10 -9 ----------- Run | Yrd Mat Mat Matter Collected 192 | 179 . 13 Remotely . | . . . Salvage Created 472 | . . 472 Parts 27 | . . 27 Haulers Intercepted 2 | . . 2 Recyclers Shooed . | . . . Parts Field Recycled . | . . . Retrieved Matter . | . . . Parts Self-Destructed . | . . . Prevented . | . . . Kills | -11 -10 -9 ------- Run | Yrd Mat Mat Combat Hostiles Destroyed 6 | . . 6 Melee 1 | . . 1 AOE 5 | . . 5 Classes Destroyed 5 | . . 5 Hauler 2 | . . 2 Recycler 3 | . . 3 Operator 1 | . . 1 Grunt 5 | . . 5 Sentry 1 | . . 1 Best Kill Streak 7 | . . 7 Combat Bots Only 3 | . . 3 Max Kills in Single Turn 2 | . . 2 Gunslinging . | . . . Exploded 1 | . . 1 Melee 1 | . . 1 Uniques/NPCs Destroyed . | . . . Combat | -11 -10 -9 -------- Run | Yrd Mat Mat Hostile Shots Fired 112 | . 12 100 Missed 31 | . 4 27 Damage Taken 1097 | . 91 1006 Core 439 | . 33 406 Absorbed by Shields . | . . . Core Remaining (%) 93 | 100 86 . Volleys Fired 9 | . . 9 Largest 1 | . . 1 Hottest 33 | . . 33 Shots Fired 9 | . . 9 Gun . | . . . Cannon . | . . . Launcher 9 | . . 9 Special . | . . . Kinetic . | . . . Thermal . | . . . Explosive 9 | . . 9 Electromagnetic . | . . . Robot Hit Streak 2 | . . 2 Robot Miss Streak 2 | . . 2 Penetration Max . | . . . Secondary Targets . | . . . Shots Hit Robots 13 | . 1 12 Core Hits 19 | . . 19 Critical Kills 1 | . . 1 Critical Parts Destroyed . | . . . Critical Strikes 1 | . . 1 Smash 1 | . . 1 Melee Attacks 13 | . 4 9 Impact 13 | . 4 9 Slashing . | . . . Piercing . | . . . Sneak Attacks 2 | . . 2 Combat Hostiles . | . . . Follow-up Attacks . | . . . Damage Inflicted 1198 | . 28 1170 Guns . | . . . Cannons . | . . . Explosions 819 | . . 819 Melee 379 | . 28 351 Ramming . | . . . Kinetic . | . . . Thermal . | . . . Explosive 819 | . . 819 Electromagnetic . | . . . Impact 379 | . 28 351 Slashing . | . . . Piercing . | . . . Highest Corruption 1 | . . 1 Average Corruption 1 | . . 1 Corruption Purged . | . . . Corruption Blocked . | . . . Effects 1 | . . 1 Data Loss (major) 1 | . . 1 Overload Shots . | . . . Overflow Damage 50 | . . 50 Projectiles . | . . . Explosions . | . . . Melee 50 | . . 50 Knockbacks . | . . . Impact . | . . . Kinetic . | . . . Secondary . | . . . Self-Inflicted Damage 72 | . . 72 Shots 5 | . . 5 Rammed . | . . . Targets Rammed . | . . . Kicked . | . . . Crushed . | . . . Highest Temperature 2 | . . 2 Average Temperature 2 | . . 2 Received Heat Transfer 450 | . 48 402 Siege Activations . | . . . Robots Corrupted . | . . . Combat Hostiles . | . . . Parts Fried 2 | . . 2 Impact Corruptions 2 | . . 2 Robots Melted . | . . . Combat Hostiles . | . . . Parts Melted . | . . . Heat Transferred . | . . . Parts Sabotaged . | . . . Parts Stolen . | . . . Parts Stripped . | . . . Power Chain Reactions . | . . . Alert | -11 -10 -9 ------- Run | Yrd Mat Mat Peak Influence 260 | . 32 260 Initial 13 | . . 13 Average 70 | . 12 98 Maximum Alert Level 1 | . . 1 Low Security (%) 83 | . 100 75 Level 1 16 | . . 24 Level 2 . | . . . Level 3 . | . . . Level 4 . | . . . Level 5 . | . . . High Security . | . . . Max Security . | . . . Squads Dispatched 7 | . 1 6 Investigation 3 | . . 3 Extermination . | . . . Reinforcement 4 | . 1 3 Assault . | . . . Garrison . | . . . Intercept . | . . . Searches Triggered . | . . . Construction Impeded 1 | . . 1 Haulers Reinforced . | . . . Active Scanning Responses . | . . . Cargo Convoy Interrupts . | . . . Stealth | -11 -10 -9 --------- Run | Yrd Mat Mat Distress Signals 1 | . 1 . Communications Jammed . | . . . Distress Signals . | . . . Times Spotted 21 | . 4 17 Peak Tracking Total 9 | . 3 9 Tactical Retreats 1 | . . 1 Traps | -11 -10 -9 ------- Run | Yrd Mat Mat Traps Triggered 1 | . . 1 Indirectly . | . . . Trap Hack Attempts . | . . . Triggered . | . . . Disarmed . | . . . Reprogrammed . | . . . Reused . | . . . Traps Extracted . | . . . Installed . | . . . Triggered . | . . . Machines | -11 -10 -9 ---------- Run | Yrd Mat Mat Machines Disabled 1 | . . 1 Max in Single Turn 1 | . . 1 Machines Repaired . | . . . Machines Dismantled . | . . . Machines Sabotaged . | . . . Overloaded Fab Kills . | . . . Hacking | -11 -10 -9 --------- Run | Yrd Mat Mat Machines Accessed 2 | . . 2 Terminals 2 | . . 2 Fabricators . | . . . Repair Stations . | . . . Recycling Units . | . . . Scanalyzers . | . . . Garrison Access . | . . . Total Hacks 7 | . . 7 Successful . | . . . Failed 7 | . . 7 Catastrophic 2 | . . 2 Database Lockouts . | . . . Manual 7 | . . 7 Terminals 7 | . . 7 Fabricators . | . . . Repair Stations . | . . . Recycling Units . | . . . Scanalyzers . | . . . Garrison Access . | . . . Terminal Hacks . | . . . Fabricator Hacks . | . . . Repair Station Hacks . | . . . Recycling Unit Hacks . | . . . Scanalyzer . | . . . Garrison Access Hacks . | . . . Unauthorized Hacks . | . . . Terminals . | . . . Fabricators . | . . . Repair Stations . | . . . Recycling Units . | . . . Scanalyzers . | . . . Garrison Access . | . . . Data Cores Recovered . | . . . Used . | . . . Hacking Detections 2 | . . 2 Full Trace Events 2 | . . 2 Feedback Events 1 | . . 1 Corruption 1 | . . 1 Feedback Blocked . | . . . Robot Schematics Acquired . | . . . Robots Built . | . . . Authchips . | . . . Time . | . . . Total Robot Build Rating . | . . . Part Schematics Acquired . | . . . Parts Built . | . . . Authchips . | . . . Time . | . . . Total Part Build Rating . | . . . Parts Repaired . | . . . Time . | . . . Parts Recycled . | . . . Recycled Matter . | . . . Retrieved Matter . | . . . Retrieved Components . | . . . Parts Scanalyzed . | . . . Part Schematics Acquired . | . . . Parts Damaged . | . . . Bothacking | -11 -10 -9 ------------ Run | Yrd Mat Mat Used RIF Installer . | . . . Robots Hacked . | . . . Non-combat . | . . . Combat . | . . . Robot Hacks Applied . | . . . Relay Couplers Released . | . . . Fabnet Peak Effective % . | . . . Robots Rewired . | . . . Allies Hacked . | . . . Hacks Repelled . | . . . Allies | -11 -10 -9 -------- Run | Yrd Mat Mat Total Allies . | . . . Largest Group . | . . . Highest-Rated Group . | . . . Highest-Rated Ally . | . . . Total Orders . | . . . Ally Attacks . | . . . Total Damage . | . . . Kills . | . . . Allies Corrupted . | . . . Allies Melted . | . . . Intel | -11 -10 -9 ------- Run | Yrd Mat Mat Robot Analysis Total . | . . . Derelict Logs Recovered . | . . . Drone Launches . | . . . Drone Recoveries . | . . . Exploration | -11 -10 -9 ------------- Run | Yrd Mat Mat Turns Passed 333 | . 109 224 Spaces Moved 223 | 1 75 147 Core 7 | . . 7 Treads . | . . . Legs 189 | 1 75 113 Wheels 27 | . . 27 Hover . | . . . Flight . | . . . Fastest Speed 100 | 120 120 100 Average Speed 118 | 120 120 117 Slowest Speed 150 | 120 120 150 Overloaded Moves . | . . . Propulsion Burnouts . | . . . Robots Hopped . | . . . Cave-ins Triggered . | . . . Exploration Rate (%) 14 | 2 16 24 Regions Visited 2 Branch Regions . Pre-discovered Areas . | . . . Known Exits Taken . | . . . Unknown Exits Taken 2 | 1 1 . Scrap Searched . | . . . Spaces Dug 2 | . 2 . Terrain Destroyed 49 | . 2 47 Melee 2 | . 2 . Projectile . | . . . AOE 47 | . . 47 Terrain Rammed . | . . . Walls Destroyed . | . . . Machines Disabled . | . . . Actions | -11 -10 -9 --------- Run | Yrd Mat Mat Total 260 | . 89 171 Wait . | . . . Move 221 | . 74 147 Hop . | . . . Pick Up 4 | . 4 . Fast Attach 1 | . . 1 Attach 5 | . 1 4 Detach 2 | . 1 1 Swap . | . . . Drop 5 | . 5 . Fire 9 | . . 9 Melee 13 | . 4 9 Ram . | . . . Kick . | . . . Crush . | . . . Escape Stasis . | . . . Rewire . | . . . Trap . | . . . Miscellaneous . | . . . Route ------- -11/Scrapyard -10/Materials -9/Materials (discovered 1 exit: [*Mat]) History --------- Turn | Location | Event 1 | -11/Scrapyard | Discovered new exit (range 0) 1 | -11/Scrapyard | Entered Materials 108 | -10/Materials | Discovered new exit (range 2) 110 | -10/Materials | Entered another Materials area 110 | -9/Materials | Evolved 2 slots: Utility x2 310 | -9/Materials | Discovered new exit (range 16) 311 | -9/Materials | Build established: Mutant 321 | -9/Materials | Core integrity fell below 50% 330 | -9/Materials | Core integrity fell below 20% 334 | -9/Materials | Destroyed by G-34 Mercenary with Small Laser Last Messages --------------- 00289_ Rocket Launcher destroyed. 00289_ Aluminum Leg destroyed. 00289_ K-01 Serf collects debris. 00291_ R-06 Scavenger collects Aluminum Leg. 00294_ K-01 Serf collects debris. 00296_ Acquired 3 matter. 00298_ K-01 Serf collects debris. 00300_ M-13 Machinist repairs Ion Engine. 00301_ K-01 Serf collects debris. 00308_ Com. Wheel destroyed. 00308_ Triggered Alarm Trap. 00308_ An alarm sounds. 00308_ ALERT: Alarm triggered, dispatching investigation squad. 00310_ The unstable cave ceiling collapses. 00310_ Heat Sink crushed. 00310_ EXIT=FOUND 00317_ Hvy. Ion Engine destroyed. 00318_ Com. Wheel destroyed. 00324_ M-13 Machinist repairs Imp. Ion Engine. 00330_ M-13 Machinist repairs Imp. Aluminum Leg. Map ----- +----------------------------------------------------+ | | | | | | | | | | | | | | | | | | | | | | | | | | | | | ??????????????????????????????????????????????? | | ??????????????????????????????????????????????? | | ??????????????????????????????????????????????? | | ??????????????????????????????????????????????? | | ??????????????????????????????????????????????? | | ??????????????????????????????????????????????? | | ??????????????????????????????????????????????? | | ??????????????????????????????????????????????? | | ??????????????????????????????????????????????? | | ???????????????????#############+############## | | ???????????????????# g =** | | ???????????????????# <@g g g =* | | ???????????????????# g l mg g [!^ =* | | ???????????????????###########+#######! | | ???????????????????????????? =????# | | ???????????????????????????# #??# | | ???????????????????????????# """ #??# "Y" [ | | ???????????????????????????# """ #??# """ | | ???????????????????????????# """ #??# | | ???????????????????????????# #??# | | ???????????????????????????########??####### | | ???????????????????????????????????????????## | | ????????????????????????????????????????????### | | ??????????????????????????????????????????????? | | ??????????????????????????????????????????????? | | ??????????????????????????????????????????????? | | ??????????????????????????????????????????????? | | ??????????????????????????????????????????????? | | ??????????????????????????????????????????????? | | ??????????????????????????????????????????????? | | ??????????????????????????????????????????????? | | ??????????????????????????????????????????????? | | ??????????????????????????????????????????????? | | ??????????????????????????????????????????????? | | ??????????????????????????????????????????????? | | ??????????????????????????????????????????????? | +----------------------------------------------------+ Best States ------------- Heat Dissipation 28 Energy Generation 14 Energy Capacity 280 Matter Stores 279 Matter Capacity 300 Sight Range 16 Terrain Scan Density 10 Evasion (%) 55 Item Schematics ----------------- None Robot Schematics ------------------ None Fabricated ------------ Nothing Alien Tech Used ----------------- None Achievements -------------- None Challenges ------------ None Game ------ Seed frogmind Manual? 1 Play Time 00:05:01 Cumulative 42.0 hours Start 2024.04.17 @ 12:01:58 End 2024.04.17 @ 12:04:53 Sessions 1 Manual Loads 0 Difficulty Rogue Special Mode None Game No. 70 Rogue 69 Adventurer 1 Explorer 0 Win Type - Total 2 Types 2/0/0/0/0/0/0/0/0 Lore% 26 Gallery% 47 Achievement% 39 Wizard Run 0 Options --------- Layout 0 ASCII 0 Keyboard 0 Movement Numpad Keybinds 0 Fullscreen 1 Font 18/SmallcapsGlow Map View 76x50 Zoom Use 0% Tactical HUD 1 Map Filters NONE Filters NONE Steam 1 RUN: e7afbe65-1f78-414d-87c3-f3f75d44f958